[Event "56th Rubinstein Memorial A 2020"]
[Site "Polanica Zdroj"]
[Date "2020.08.15"]
[Round "1.14"]
[White "Dahl, Christoph"]
[Black "Hertlein, Irena"]
[Result "1/2-1/2"]
[ECO "B01"]
[WhiteElo "2228"]
[BlackElo "1905"]
[Annotator "ChessBase"]
[PlyCount "67"]
[EventDate "2020.08.15"]
[EventType "swiss"]
[EventCountry "POL"]
[SourceTitle "playchess.com"]
[Source "ChessBase"]
[SourceQuality "1"]
[TimeControl "40/5400+30:1800+30"]

1. e4 {[%emt 0:00:00]} d5 {[%emt 0:00:00]} 2. exd5 {[%emt 0:00:00]} Qxd5 {[%emt 0:00:08]} 3. Nc3 {[%emt 0:00:16]} Qd6 {[%emt 0:00:13]} 4. d4 {[%emt 0:00:27]} Nf6 {[%emt 0:00:26]} 5. Nf3 {[%emt 0:00:43]} c6 {[%emt 0:00:23]} 6. Bc4 {[%emt 0:02:21]} Bg4 {[%emt 0:00:43]} 7. Be3 {[%emt 0:01:00]} Nbd7 {[%emt 0:05:08]} 8. h3 {[%emt 0:01:43]} Bh5 {[%emt 0:00:51]} 9. g4 {[%emt 0:00:56]} Bg6 {[%emt 0:00:15]} 10. Qd2 {[%emt 0:18:40]} e6 {[%emt 0:05:30]} 11. O-O-O {[%emt 0:05:43]} Qc7 {[%emt 0:03:40]} 12. Ne5 {[%emt 0:07:02]} O-O-O {[%emt 0:02:17]} 13. Nxg6 {[%emt 0:02:55]} hxg6 {[%emt 0:00:09]} 14. Qe2 {[%emt 0:02:06]} Nb6 {[%emt 0:07:23]} 15. Bb3 {[%emt 0:02:54]} Bd6 {[%emt 0:06:26]} 16. Qf3 {[%emt 0:03:09]} Nbd5 {[%emt 0:15:47]} 17. Nxd5 {[%emt 0:06:11]} cxd5 {[%emt 0:02:05]} 18. Kb1 {[%emt 0:01:12]} Kb8 {[%emt 0:02:10]} 19. Bg5 {[%emt 0:04:05]} Be7 {[%emt 0:02:48]} 20. Qd3 {[%emt 0:05:45]} Rc8 {[%emt 0:06:11]} 21. Rc1 {[%emt 0:05:27]} Rhd8 {[%emt 0:04:50]} 22. c4 {[%emt 0:03:11]} dxc4 {[%emt 0:02:05]} 23. Rxc4 {[%emt 0:00:32]} Qd7 {[%emt 0:04:11]} 24. Rhc1 {[%emt 0:01:48]} Rxc4 {[%emt 0:03:40]} 25. Qxc4 {[%emt 0:00:57]} Nd5 {[%emt 0:00:57]} 26. Bxe7 {[%emt 0:01:35]} Qxe7 {[%emt 0:02:31]} 27. Qe2 {[%emt 0:06:51]} Qd6 {[%emt 0:05:04]} 28. Qf3 {[%emt 0:03:21]} Nf4 {[%emt 0:08:46]} 29. Qe3 {[%emt 0:04:31]} g5 {[%emt 0:02:35]} 30. Rd1 {[%emt 0:01:18]} Rh8 {[%emt 0:04:51]} 31. Rh1 {[%emt 0:00:32]} Rd8 {[%emt 0:00:58]} 32. Rd1 {[%emt 0:01:04]} Rh8 {[%emt 0:00:06]} 33. Rh1 {[%emt 0:00:11]} Rd8 {[%emt 0:01:18]} 34. Rd1 {[%emt 0:00:05]} 1/2-1/2

[Event "56th Rubinstein Memorial A 2020"]
[Site "Polanica Zdroj"]
[Date "2020.08.15"]
[Round "1.16"]
[White "Fiedorek, Michal"]
[Black "Jedynak, January"]
[Result "1-0"]
[ECO "C24"]
[WhiteElo "2212"]
[BlackElo "1887"]
[Annotator "ChessBase"]
[PlyCount "47"]
[EventDate "2020.08.15"]
[EventType "swiss"]
[EventCountry "POL"]
[SourceTitle "playchess.com"]
[Source "ChessBase"]
[SourceQuality "1"]
[TimeControl "40/5400+30:1800+30"]

1. e4 {[%emt 0:00:00]} e5 {[%emt 0:01:25]} 2. Bc4 {[%emt 0:00:00]} Nf6 {[%emt 0:00:36]} 3. d3 {[%emt 0:00:00]} c6 {[%emt 0:04:01]} 4. Nf3 {[%emt 0:00:45]} d5 {[%emt 0:00:09]} 5. Bb3 {[%emt 0:00:13]} Bd6 {[%emt 0:00:21]} 6. Nc3 {[%emt 0:01:10]} dxe4 {[%emt 0:02:40]} 7. Nxe4 {[%emt 0:13:10]} Nxe4 {[%emt 0:02:22]} 8. dxe4 {[%emt 0:00:07]} O-O {[%emt 0:03:48]} 9. O-O {[%emt 0:02:50]} Bg4 {[%emt 0:07:23]} 10. Qd3 {[%emt 0:07:06]} Qf6 {[%emt 0:08:50]} 11. Rd1 {[%emt 0:15:35]} Bc7 {[%emt 0:03:16]} 12. Bg5 {[%emt 0:04:58]} Qg6 {[%emt 0:01:36]} 13. Be7 {[%emt 0:04:35]} Re8 {[%emt 0:03:16]} 14. Ng5 {[%emt 0:01:21]} Bxd1 {[%emt 0:24:07]} 15. Rxd1 {[%emt 0:03:23]} Na6 {[%emt 0:16:41]} 16. Bxf7+ {[%emt 0:13:27]} Qxf7 {[%emt 0:00:12]} 17. Nxf7 {[%emt 0:00:05]} Rxe7 {[%emt 0:03:07]} 18. Ng5 {[%emt 0:00:33]} Bb6 {[%emt 0:04:41]} 19. Qc4+ {[%emt 0:05:15]} Kh8 {[%emt 0:00:29]} 20. Nf7+ {[%emt 0:00:11]} Kg8 {[%emt 0:00:10]} 21. Nxe5+ {[%emt 0:00:53]} Kh8 {[%emt 0:00:45]} 22. Ng6+ {[%emt 0:06:59]} hxg6 {[%emt 0:00:38]} 23. Rd3 {[%emt 0:00:09]} Re5 {[%emt 0:04:24]} 24. g4 {[%emt 0:00:42]} 1-0

[Event "56th Rubinstein Memorial A 2020"]
[Site "Polanica Zdroj"]
[Date "2020.08.15"]
[Round "1.17"]
[White "Polak, Michal"]
[Black "Kasperek, Ryszard"]
[Result "1/2-1/2"]
[ECO "B23"]
[WhiteElo "1878"]
[BlackElo "2202"]
[Annotator "ChessBase"]
[PlyCount "80"]
[EventDate "2020.08.15"]
[EventType "swiss"]
[EventCountry "POL"]
[SourceTitle "playchess.com"]
[Source "ChessBase"]
[SourceQuality "1"]
[TimeControl "40/5400+30:1800+30"]

1. e4 {[%emt 0:00:00]} c5 {[%emt 0:00:00]} 2. Nc3 {[%emt 0:00:00]} e6 {[%emt 0:00:34]} 3. g3 {[%emt 0:00:00]} d5 {[%emt 0:00:36]} 4. Bg2 {[%emt 0:00:04]} dxe4 {[%emt 0:06:29]} 5. Nxe4 {[%emt 0:01:13]} Bd7 {[%emt 0:04:51]} 6. Nf3 {[%emt 0:05:41]} Nc6 {[%emt 0:07:17]} 7. d3 {[%emt 0:02:42]} Nf6 {[%emt 0:05:32]} 8. Bg5 {[%emt 0:03:01]} Be7 {[%emt 0:00:49]} 9. Bxf6 {[%emt 0:05:32]} Bxf6 {[%emt 0:02:58]} 10. Qd2 {[%emt 0:21:59]} Be7 {[%emt 0:03:49]} 11. O-O {[%emt 0:06:06]} f5 {[%emt 0:06:37]} 12. Nc3 {[%emt 0:06:03]} Bf6 {[%emt 0:03:31]} 13. Ne2 {[%emt 0:00:53]} e5 {[%emt 0:03:09]} 14. c3 {[%emt 0:14:43]} O-O {[%emt 0:20:36]} 15. Rfd1 {[%emt 0:02:16]} Qe7 {[%emt 0:03:30]} 16. d4 {[%emt 0:01:05]} cxd4 {[%emt 0:05:12]} 17. cxd4 {[%emt 0:00:02]} e4 {[%emt 0:00:04]} 18. Ne1 {[%emt 0:00:34]} Rad8 {[%emt 0:03:47]} 19. d5 {[%emt 0:05:53]} Be6 {[%emt 0:06:43]} 20. d6 {[%emt 0:03:46]} Qf7 {[%emt 0:00:36]} 21. f3 {[%emt 0:02:59]} Be5 {[%emt 0:06:56]} 22. Qe3 {[%emt 0:01:26]} Bxd6 {[%emt 0:00:57]} 23. fxe4 {[%emt 0:00:45]} fxe4 {[%emt 0:00:45]} 24. Nc3 {[%emt 0:05:03]} Bc7 {[%emt 0:01:36]} 25. Qxe4 {[%emt 0:03:32]} Bb6+ {[%emt 0:00:11]} 26. Kh1 {[%emt 0:00:20]} Qf1+ {[%emt 0:03:51]} 27. Bxf1 {[%emt 0:00:10]} Rxf1+ {[%emt 0:00:02]} 28. Kg2 {[%emt 0:00:09]} Rg1+ {[%emt 0:00:36]} 29. Kf3 {[%emt 0:00:13]} Rf8+ {[%emt 0:00:22]} 30. Qf4 {[%emt 0:03:28]} Rf1+ {[%emt 0:01:24]} 31. Ke4 {[%emt 0:01:27]} Bf5+ {[%emt 0:00:32]} 32. Kd5 {[%emt 0:01:52]} Rxf4 {[%emt 0:00:18]} 33. gxf4 {[%emt 0:00:12]} Rd8+ {[%emt 0:00:08]} 34. Kc4 {[%emt 0:00:12]} Be6+ {[%emt 0:00:04]} 35. Kb5 {[%emt 0:00:52]} Nd4+ {[%emt 0:00:35]} 36. Ka4 {[%emt 0:01:41]} Rc8 {[%emt 0:00:50]} 37. Ka3 {[%emt 0:01:04]} Rc4 {[%emt 0:00:41]} 38. Ne4 {[%emt 0:01:28]} Nc2+ {[%emt 0:00:36]} 39. Nxc2 {[%emt 0:00:21]} Rxc2 {[%emt 0:01:07]} 40. Rac1 {[%emt 0:00:00]} Rc8 1/2-1/2

[Event "56th Rubinstein Memorial A 2020"]
[Site "Polanica Zdroj"]
[Date "2020.08.15"]
[Round "1.18"]
[White "Jaskolka, Tomasz"]
[Black "Kowalczyk, Wojciech"]
[Result "1-0"]
[ECO "A45"]
[WhiteElo "2196"]
[BlackElo "1873"]
[Annotator "ChessBase"]
[PlyCount "61"]
[EventDate "2020.08.15"]
[EventType "swiss"]
[EventCountry "POL"]
[SourceTitle "playchess.com"]
[Source "ChessBase"]
[SourceQuality "1"]
[TimeControl "40/5400+30:1800+30"]

1. d4 {[%emt 0:00:00]} Nf6 {[%emt 0:00:00]} 2. Bf4 {[%emt 0:00:00]} d6 {[%emt 0:00:05]} 3. Nc3 {[%emt 0:00:15]} g6 {[%emt 0:00:29]} 4. e4 {[%emt 0:00:13]} Bg7 {[%emt 0:01:03]} 5. Qd2 {[%emt 0:00:13]} O-O {[%emt 0:02:23]} 6. O-O-O {[%emt 0:01:42]} c6 {[%emt 0:03:30]} 7. Bh6 {[%emt 0:01:30]} b5 {[%emt 0:04:37]} 8. f3 {[%emt 0:00:19]} a5 {[%emt 0:06:58]} 9. h4 {[%emt 0:01:02]} a4 {[%emt 0:07:12]} 10. h5 {[%emt 0:02:55]} b4 {[%emt 0:02:15]} 11. Nb1 {[%emt 0:06:52]} Qa5 {[%emt 0:10:04]} 12. hxg6 {[%emt 0:07:21]} fxg6 {[%emt 0:01:25]} 13. e5 {[%emt 0:02:07]} dxe5 {[%emt 0:08:19]} 14. Bc4+ {[%emt 0:00:37]} e6 {[%emt 0:01:45]} 15. Bxg7 {[%emt 0:01:40]} Kxg7 {[%emt 0:00:17]} 16. Qh6+ {[%emt 0:00:22]} Kg8 {[%emt 0:06:48]} 17. Nh3 {[%emt 0:02:31]} Ra7 {[%emt 0:04:26]} 18. Ng5 {[%emt 0:14:33]} Re7 {[%emt 0:01:59]} 19. Rde1 {[%emt 0:05:00]} Qc7 {[%emt 0:12:09]} 20. Rxe5 {[%emt 0:12:06]} Nd5 {[%emt 0:11:35]} 21. Rhe1 {[%emt 0:02:35]} Rf6 {[%emt 0:02:36]} 22. Nd2 {[%emt 0:02:07]} Rf5 {[%emt 0:05:36]} 23. f4 {[%emt 0:10:10]} Rxe5 {[%emt 0:03:31]} 24. fxe5 {[%emt 0:00:05]} Ba6 {[%emt 0:01:11]} 25. Bxa6 {[%emt 0:04:43]} Nxa6 {[%emt 0:00:08]} 26. Nde4 {[%emt 0:00:08]} c5 {[%emt 0:01:45]} 27. Rf1 {[%emt 0:01:39]} Qd8 {[%emt 0:00:45]} 28. Nxh7 {[%emt 0:00:48]} Rg7 {[%emt 0:00:36]} 29. Nhf6+ {[%emt 0:00:48]} Nxf6 {[%emt 0:00:24]} 30. Nxf6+ {[%emt 0:00:06]} Kf7 {[%emt 0:00:21]} 31. Nh5+ {[%emt 0:00:07]} 1-0

[Event "56th Rubinstein Memorial A 2020"]
[Site "Polanica Zdroj"]
[Date "2020.08.15"]
[Round "1.19"]
[White "Kazmierowski, Tymon"]
[Black "Luba, Lukasz"]
[Result "0-1"]
[ECO "D10"]
[WhiteElo "1870"]
[BlackElo "2188"]
[Annotator "ChessBase"]
[PlyCount "96"]
[EventDate "2020.08.15"]
[EventType "swiss"]
[EventCountry "POL"]
[SourceTitle "playchess.com"]
[Source "ChessBase"]
[SourceQuality "1"]
[TimeControl "40/5400+30:1800+30"]

1. d4 {[%emt 0:00:00]} d5 {[%emt 0:00:00]} 2. c4 {[%emt 0:00:00]} c6 {[%emt 0:00:00]} 3. cxd5 {[%emt 0:00:00]} cxd5 {[%emt 0:00:08]} 4. Bf4 {[%emt 0:00:00]} Nc6 {[%emt 0:00:22]} 5. e3 {[%emt 0:00:01]} Qb6 {[%emt 0:00:25]} 6. Nc3 {[%emt 0:01:19]} e6 {[%emt 0:00:07]} 7. Bd3 {[%emt 0:02:21]} Bd7 {[%emt 0:01:36]} 8. Nge2 {[%emt 0:00:48]} Nf6 {[%emt 0:00:50]} 9. O-O {[%emt 0:01:00]} Nh5 {[%emt 0:00:31]} 10. Qd2 {[%emt 0:03:31]} Nxf4 {[%emt 0:00:19]} 11. Nxf4 {[%emt 0:00:02]} Bd6 {[%emt 0:00:27]} 12. Nh5 {[%emt 0:02:23]} O-O-O {[%emt 0:00:37]} 13. a3 {[%emt 0:06:44]} Rdg8 {[%emt 0:00:41]} 14. b4 {[%emt 0:01:03]} Qd8 {[%emt 0:00:54]} 15. Rac1 {[%emt 0:02:21]} Kb8 {[%emt 0:00:16]} 16. Be2 {[%emt 0:06:38]} g6 {[%emt 0:01:40]} 17. Ng3 {[%emt 0:00:46]} f5 {[%emt 0:00:43]} 18. Nb5 {[%emt 0:03:07]} Be7 {[%emt 0:00:51]} 19. f4 {[%emt 0:14:12]} h5 {[%emt 0:00:10]} 20. Bd3 {[%emt 0:08:53]} Qb6 {[%emt 0:00:52]} 21. Ne2 {[%emt 0:01:12]} Nxb4 {[%emt 0:00:37]} 22. a4 {[%emt 0:03:18]} Nxd3 {[%emt 0:03:22]} 23. Qxd3 {[%emt 0:00:13]} Bxb5 {[%emt 0:00:17]} 24. axb5 {[%emt 0:00:08]} Rc8 {[%emt 0:00:07]} 25. Nc3 {[%emt 0:00:26]} Rc4 {[%emt 0:00:06]} 26. Ra1 {[%emt 0:00:45]} Rhc8 {[%emt 0:00:27]} 27. Na4 {[%emt 0:00:55]} Qxb5 {[%emt 0:00:08]} 28. Nc5 {[%emt 0:01:21]} R4xc5 {[%emt 0:00:06]} 29. Qa3 {[%emt 0:00:11]} Qb6 {[%emt 0:05:16]} 30. dxc5 {[%emt 0:01:05]} Bxc5 {[%emt 0:00:07]} 31. Qa4 {[%emt 0:00:20]} Bxe3+ {[%emt 0:00:22]} 32. Kh1 {[%emt 0:00:05]} Qc6 {[%emt 0:01:01]} 33. Qa3 {[%emt 0:00:24]} Qc5 {[%emt 0:04:07]} 34. Qa4 {[%emt 0:00:34]} d4 {[%emt 0:03:48]} 35. Rfb1 {[%emt 0:02:45]} d3 {[%emt 0:01:10]} 36. Qa6 {[%emt 0:06:01]} Qd5 {[%emt 0:00:11]} 37. Ra5 {[%emt 0:02:09]} d2 {[%emt 0:04:19]} 38. Rxd5 {[%emt 0:01:01]} Rc1+ {[%emt 0:00:07]} 39. Qf1 {[%emt 0:00:06]} exd5 {[%emt 0:00:13]} 40. g3 {[%emt 0:00:00]} Rxf1+ {[%emt 0:00:00]} 41. Rxf1 {[%emt 0:00:29]} b5 {[%emt 0:03:19]} 42. Kg2 {[%emt 0:00:11]} b4 {[%emt 0:01:55]} 43. Rd1 {[%emt 0:00:31]} Kb7 {[%emt 0:00:49]} 44. Kf3 {[%emt 0:00:13]} d4 {[%emt 0:00:04]} 45. Ke2 {[%emt 0:00:46]} Kb6 {[%emt 0:00:03]} 46. Kd3 {[%emt 0:02:07]} Kb5 {[%emt 0:00:05]} 47. Kc2 {[%emt 0:00:16]} a5 {[%emt 0:00:06]} 48. Ra1 {[%emt 0:01:50]} a4 {[%emt 0:00:05]} 0-1

[Event "56th Rubinstein Memorial A 2020"]
[Site "Polanica Zdroj"]
[Date "2020.08.16"]
[Round "2.1"]
[White "Ovsejevitsch, Sergei"]
[Black "Fiedorek, Michal"]
[Result "1/2-1/2"]
[ECO "E92"]
[WhiteElo "2587"]
[BlackElo "2212"]
[Annotator "ChessBase"]
[PlyCount "50"]
[EventDate "2020.08.15"]
[EventType "swiss"]
[EventCountry "POL"]
[SourceTitle "playchess.com"]
[Source "ChessBase"]
[SourceQuality "1"]
[TimeControl "40/5400+30:1800+30"]

1. Nf3 {[%emt 0:00:00]} Nf6 {[%emt 0:00:00]} 2. c4 {[%emt 0:00:00]} g6 {[%emt 0:01:28]} 3. Nc3 {[%emt 0:00:16]} Bg7 {[%emt 0:00:15]} 4. e4 {[%emt 0:00:24]} d6 {[%emt 0:00:14]} 5. d4 {[%emt 0:00:22]} O-O {[%emt 0:00:13]} 6. Be2 {[%emt 0:00:30]} e5 {[%emt 0:00:16]} 7. d5 {[%emt 0:05:19]} a5 {[%emt 0:00:31]} 8. Be3 {[%emt 0:09:14]} Ng4 {[%emt 0:04:22]} 9. Bg5 {[%emt 0:00:53]} f6 {[%emt 0:00:35]} 10. Bd2 {[%emt 0:02:58]} f5 {[%emt 0:01:24]} 11. exf5 {[%emt 0:01:05]} gxf5 {[%emt 0:00:39]} 12. O-O {[%emt 0:03:32]} e4 {[%emt 0:05:53]} 13. Ne1 {[%emt 0:02:49]} Ne5 {[%emt 0:23:56]} 14. f3 {[%emt 0:06:29]} exf3 {[%emt 0:08:50]} 15. Nxf3 {[%emt 0:00:42]} Nbd7 {[%emt 0:00:36]} 16. Kh1 {[%emt 0:03:03]} Nxf3 {[%emt 0:04:29]} 17. gxf3 {[%emt 0:02:50]} Ne5 {[%emt 0:14:31]} 18. Qc1 {[%emt 0:13:07]} Qh4 {[%emt 0:06:44]} 19. Bf4 {[%emt 0:09:43]} Bd7 {[%emt 0:03:53]} 20. Rg1 {[%emt 0:06:51]} Kh8 {[%emt 0:02:18]} 21. Qd2 {[%emt 0:07:50]} a4 {[%emt 0:04:48]} 22. Nb5 {[%emt 0:08:27]} Bxb5 {[%emt 0:02:26]} 23. cxb5 {[%emt 0:00:04]} Ng6 {[%emt 0:01:41]} 24. Bg5 {[%emt 0:02:28]} Qd4 {[%emt 0:01:19]} 25. Rac1 {[%emt 0:01:05]} Rae8 {[%emt 0:02:17]} 1/2-1/2

[Event "56th Rubinstein Memorial A 2020"]
[Site "Polanica Zdroj"]
[Date "2020.08.16"]
[Round "2.1"]
[White "Jedynak, January"]
[Black "Betkowski, Andrzej"]
[Result "1-0"]
[ECO "C01"]
[WhiteElo "1887"]
[BlackElo "2044"]
[Annotator "ChessBase"]
[PlyCount "131"]
[EventDate "2020.08.15"]
[EventType "swiss"]
[EventCountry "POL"]
[SourceTitle "playchess.com"]
[Source "ChessBase"]
[SourceQuality "1"]
[TimeControl "40/5400+30:1800+30"]

1. e4 {[%emt 0:06:55]} e6 {[%emt 0:00:00]} 2. d4 {[%emt 0:00:12]} d5 {[%emt 0:00:00]} 3. exd5 {[%emt 0:00:43]} exd5 {[%emt 0:00:00]} 4. Nf3 {[%emt 0:00:11]} Bd6 {[%emt 0:01:43]} 5. c4 {[%emt 0:00:35]} Nf6 {[%emt 0:02:07]} 6. Nc3 {[%emt 0:02:52]} dxc4 {[%emt 0:10:59]} 7. Bxc4 {[%emt 0:00:13]} O-O {[%emt 0:00:47]} 8. O-O {[%emt 0:01:04]} Bg4 {[%emt 0:05:10]} 9. Bg5 {[%emt 0:16:49]} Nbd7 {[%emt 0:02:55]} 10. Re1 {[%emt 0:06:07]} c6 {[%emt 0:06:25]} 11. Ne4 {[%emt 0:22:50]} Be7 {[%emt 0:11:29]} 12. Ng3 {[%emt 0:03:08]} Nb6 {[%emt 0:09:49]} 13. Bb3 {[%emt 0:02:07]} h6 {[%emt 0:06:43]} 14. Bd2 {[%emt 0:03:58]} Nfd5 {[%emt 0:07:09]} 15. h3 {[%emt 0:00:50]} Bxf3 {[%emt 0:02:52]} 16. Qxf3 {[%emt 0:00:15]} Bg5 {[%emt 0:03:00]} 17. Bxg5 {[%emt 0:02:41]} Qxg5 {[%emt 0:00:53]} 18. Re5 {[%emt 0:02:39]} Qf4 {[%emt 0:03:27]} 19. Qe2 {[%emt 0:04:26]} Qxd4 {[%emt 0:03:13]} 20. Nf5 {[%emt 0:01:06]} Qb4 {[%emt 0:04:30]} 21. Re4 {[%emt 0:01:52]} Qc5 {[%emt 0:05:44]} 22. Qg4 {[%emt 0:00:16]} g6 {[%emt 0:00:20]} 23. Nxh6+ {[%emt 0:01:11]} Kg7 {[%emt 0:03:05]} 24. Nf5+ {[%emt 0:02:08]} Kg8 {[%emt 0:00:18]} 25. Qg5 {[%emt 0:06:15]} Rfe8 {[%emt 0:00:56]} 26. Rh4 {[%emt 0:01:11]} Qf8 {[%emt 0:00:43]} 27. Nh6+ {[%emt 0:01:16]} Kg7 {[%emt 0:00:42]} 28. Bc2 {[%emt 0:03:02]} Re6 {[%emt 0:03:07]} 29. Ng4 {[%emt 0:03:26]} Kg8 {[%emt 0:00:48]} 30. Rh6 {[%emt 0:01:15]} Qg7 {[%emt 0:00:42]} 31. Rh4 {[%emt 0:00:51]} Rae8 {[%emt 0:01:28]} 32. Nh6+ {[%emt 0:01:34]} Kf8 {[%emt 0:00:37]} 33. Rf1 {[%emt 0:01:10]} Re5 {[%emt 0:00:40]} 34. Qc1 {[%emt 0:00:47]} Qf6 {[%emt 0:01:06]} 35. g3 {[%emt 0:00:49]} Re2 {[%emt 0:00:32]} 36. Ng4 {[%emt 0:00:18]} Qg7 {[%emt 0:00:12]} 37. b3 {[%emt 0:00:35]} Nc3 {[%emt 0:01:02]} 38. Qa3+ {[%emt 0:00:14]} R8e7 {[%emt 0:00:30]} 39. Qxa7 {[%emt 0:00:55]} Nbd5 {[%emt 0:01:42]} 40. Qb8+ {[%emt 0:00:00]} Re8 {[%emt 0:00:00]} 41. Qd6+ {[%emt 0:01:43]} R8e7 {[%emt 0:01:13]} 42. Bd3 {[%emt 0:01:13]} R2e6 {[%emt 0:00:41]} 43. Qb8+ {[%emt 0:01:08]} Re8 {[%emt 0:00:05]} 44. Qxb7 {[%emt 0:00:55]} f5 {[%emt 0:02:49]} 45. Qxg7+ {[%emt 0:01:06]} Kxg7 {[%emt 0:00:02]} 46. Nh2 {[%emt 0:00:27]} Nxa2 {[%emt 0:00:33]} 47. Bc4 {[%emt 0:00:43]} Re4 {[%emt 0:03:26]} 48. Rxe4 {[%emt 0:00:36]} Rxe4 {[%emt 0:00:02]} 49. Nf3 {[%emt 0:01:37]} Nb6 {[%emt 0:01:36]} 50. Ng5 {[%emt 0:01:32]} Re5 {[%emt 0:00:27]} 51. Ra1 {[%emt 0:07:08]} Nxc4 {[%emt 0:00:42]} 52. Rxa2 {[%emt 0:00:11]} Nd6 {[%emt 0:03:32]} 53. Rc2 {[%emt 0:00:30]} c5 {[%emt 0:01:00]} 54. Rxc5 {[%emt 0:01:14]} Re1+ {[%emt 0:01:01]} 55. Kg2 {[%emt 0:00:23]} Rb1 {[%emt 0:00:39]} 56. Rd5 {[%emt 0:02:27]} Ne8 {[%emt 0:02:19]} 57. Rd7+ {[%emt 0:01:40]} Kg8 {[%emt 0:01:58]} 58. Rb7 {[%emt 0:00:33]} Nf6 {[%emt 0:00:40]} 59. b4 {[%emt 0:02:42]} Nd5 {[%emt 0:00:57]} 60. b5 {[%emt 0:00:10]} Rb2 {[%emt 0:00:56]} 61. Kf3 {[%emt 0:03:05]} Rb3+ {[%emt 0:00:35]} 62. Kg2 {[%emt 0:00:24]} Rb2 {[%emt 0:00:03]} 63. Ne6 {[%emt 0:01:03]} Kh8 {[%emt 0:04:42]} 64. h4 {[%emt 0:02:34]} Ne3+ {[%emt 0:00:58]} 65. Kf3 {[%emt 0:00:56]} Nd5 {[%emt 0:03:05]} 66. Nf8 {[%emt 0:00:42]} 1-0

[Event "56th Rubinstein Memorial A 2020"]
[Site "Polanica Zdroj"]
[Date "2020.08.16"]
[Round "2.6"]
[White "Kucza, Karol"]
[Black "Wisniewski, Michal"]
[Result "1-0"]
[ECO "B94"]
[WhiteElo "2245"]
[BlackElo "2127"]
[Annotator "ChessBase"]
[PlyCount "79"]
[EventDate "2020.08.15"]
[EventType "swiss"]
[EventCountry "POL"]
[SourceTitle "playchess.com"]
[Source "ChessBase"]
[SourceQuality "1"]
[TimeControl "40/5400+30:1800+30"]

1. e4 {[%emt 0:00:00]} c5 {[%emt 0:06:21]} 2. Nf3 {[%emt 0:00:00]} d6 {[%emt 0:00:05]} 3. d4 {[%emt 0:00:00]} cxd4 {[%emt 0:00:05]} 4. Nxd4 {[%emt 0:00:00]} Nf6 {[%emt 0:00:05]} 5. Nc3 {[%emt 0:00:00]} a6 {[%emt 0:00:03]} 6. Bg5 {[%emt 0:00:00]} Nbd7 {[%emt 0:00:06]} 7. Qe2 {[%emt 0:00:16]} e5 {[%emt 0:02:40]} 8. Nf5 {[%emt 0:05:14]} h6 {[%emt 0:00:12]} 9. Bxf6 {[%emt 0:08:09]} Nxf6 {[%emt 0:08:22]} 10. O-O-O {[%emt 0:01:07]} g6 {[%emt 0:09:46]} 11. Ne3 {[%emt 0:00:44]} Be6 {[%emt 0:00:07]} 12. Qf3 {[%emt 0:11:23]} b5 {[%emt 0:10:15]} 13. Kb1 {[%emt 0:01:48]} Be7 {[%emt 0:08:41]} 14. Ncd5 {[%emt 0:05:48]} Bxd5 {[%emt 0:00:26]} 15. Nxd5 {[%emt 0:00:27]} Nxd5 {[%emt 0:00:07]} 16. Rxd5 {[%emt 0:00:05]} Qc7 {[%emt 0:00:15]} 17. h4 {[%emt 0:00:55]} O-O {[%emt 0:07:25]} 18. h5 {[%emt 0:03:01]} Kg7 {[%emt 0:00:06]} 19. g3 {[%emt 0:08:31]} Rac8 {[%emt 0:10:26]} 20. Qd3 {[%emt 0:01:34]} Qb6 {[%emt 0:01:09]} 21. Qd2 {[%emt 0:02:09]} Rh8 {[%emt 0:00:29]} 22. f4 {[%emt 0:03:33]} Rc5 {[%emt 0:01:15]} 23. hxg6 {[%emt 0:03:07]} fxg6 {[%emt 0:07:54]} 24. Bh3 {[%emt 0:04:10]} Rf8 {[%emt 0:06:48]} 25. Be6 {[%emt 0:03:45]} Rxd5 {[%emt 0:02:02]} 26. Bxd5 {[%emt 0:03:24]} Qd4 {[%emt 0:01:11]} 27. Qh2 {[%emt 0:01:08]} Rh8 {[%emt 0:11:23]} 28. f5 {[%emt 0:01:02]} Bg5 {[%emt 0:00:47]} 29. Qh3 {[%emt 0:02:40]} gxf5 {[%emt 0:00:41]} 30. Qxf5 {[%emt 0:00:22]} Qa7 {[%emt 0:00:02]} 31. Rf1 {[%emt 0:01:46]} Qe7 {[%emt 0:00:11]} 32. Bf7 {[%emt 0:02:54]} Qf6 {[%emt 0:01:09]} 33. Qh3 {[%emt 0:00:15]} Qe7 {[%emt 0:00:00]} 34. Qh5 {[%emt 0:00:14]} Rf8 {[%emt 0:00:01]} 35. Qg6+ {[%emt 0:00:08]} Kh8 {[%emt 0:00:01]} 36. a3 {[%emt 0:01:04]} a5 {[%emt 0:00:33]} 37. Rf5 {[%emt 0:00:46]} Rd8 {[%emt 0:01:46]} 38. Ka2 {[%emt 0:01:16]} b4 {[%emt 0:00:16]} 39. a4 {[%emt 0:00:48]} Qd7 {[%emt 0:01:42]} 40. Rxg5 {[%emt 0:00:00]} 1-0